Workbook

Sheet Inicio

Sheet Electricity EF (hidden)
A1: Fuente de energía para la generación de electricidad. | B1: Factores de emisión de electricidad (g CO2e por kWh) *
A2: Base de carbón alta | B2: 850
A3: Fósiles | B3: 500
A4: Media UE | B4: 320
A5: Renovable en curso | B5: 200
A6: Altamente descarbonizado | B6: 30
A7: No aplica | B7: 0
A8: Otros | B8: 160
A9: *La Agencia Internacional de Energía (AIE) compila y publica listas actualizadas anualmente de factores nacionales de emisión de electricidad, y recomendamos que las ciudades lo utilicen como fuente de información. Otras fuentes disponibles se pueden encontrar aquí: https://www.carbonfootprint.com/docs/2019_06_emissions_factors_sources_for_2019_electricity.pdf

Sheet Ciudad (hidden)
B2: Características de la ciudad
C4: Nombre ciudad:
C6: Pais: | H6: Región:
C8: Area (km2): | H8: Longitud:
C10: Límites: | D10: Administrative | H10: Latitud:
C12: Clima**: | D12: ej. Af
B16: Parámetros de la ciudad
C18: Año: | F18: 2019 | G18: 2 | H18: 2020 | J18: 2021 | L18: 2022
C21: Población (k): | O21: *Campos en blanco: Opcionales
C23: PIB (millones de EEUU $): | O23: *Campos en amarillo: Obligatorios
C25: Ratio estimado de crecimiento de población (%): | O25: **Deacuerdo a la clasificación climática de Köppen
B28: Vehículo de mercancías pesadas (Peso bruto del vehículo de 3.5 toneladas o más)
C30: Nº registrado de vehículos (k):
C32: Tasa de crecimiento anual de vehículos matriculados (%):
C35: Carga urbana total (millones de toneladas) - Dentro de:
J37: 3 | L37: 15
C38: Carga urbana total (millones de toneladas) - Desde:
C41: Carga urbana total (millones de toneladas) - Hacia:
C44: Carga urbana total (millones de toneladas) -A través de:
B47: Vehículo de mercancías ligeras (Preso bruto del vehículo de hasta 3.5 toneladas)
C49: Nº registrado de vehículos (k):
C51: Tasa de crecimiento anual de vehículos matriculados (%):
C54: Carga urbana total (millones de toneladas) - Dentro de:
C57: Carga urbana total (millones de toneladas) - Desde:
C60: Carga urbana total (millones de toneladas) - Hacia:
C63: Carga urbana total (millones de toneladas) -A través de:
B66: Objetivo de reducción de emisiones totales
C68: Transporte aereo(%):
C70: Transporte ferroviario (%):
C72: Transporte carretero (%):
C74: Transporte fluvial (%):
B78: Calidad del aire
B79: Índice de calidad del aire (ICA)
C81: Índice numérico: | F81: 567
C83: Riesgo: | F83: Peligroso
C85: Declaración de precaución: | F85: Todos deben evitar toda actividad física al aire libre.
F89: =F18 -> 2019 | G89: =G18 -> 2 | H89: 2020 | I89: 0 | J89: 2021 | K89: 0 | L89: 2022
C90: Rango de concentración de PM2.5 [ug / m3]:
C93: Rango de concentración de PM10 [ug / m3]:
C96: Rango de concentración de NO2 [ug / m3]:
C99: Rango de concentración de Ozono [ug / m3]:
C102: Número de días que exceden los estándares AQI (días / año):
B105: Partículas finas (PM2.5)
C107: Concentración media diaria mínima [ug / m3]:
C110: Concentración media diaria máxima [ug / m3]:
C113: Annual average concentration [ug/m3]:
B116: Partículas (PM10)
C118: Concentración media diaria mínima [ug / m3]:
C121: Concentración media diaria máxima [ug / m3]:
C124: Concentración media anual [ug / m3]:
B127: Monóxido de carbono (CO)
C129: Concentración media diaria mínima [ug / m3]:
C132: Concentración media diaria máxima [ug / m3]:
C135: Concentración media anual [ug / m3]:
B138: Dióxido de nitrógeno (NO2)
C140: Concentración media diaria mínima [ug / m3]:
C143: Concentración media diaria máxima [ug / m3]:
C146: Concentración media anual [ug / m3]:
B149: Dióxido de sulfuro (SO2)
C151: Concentración media diaria mínima [ug / m3]:
C154: Concentración media diaria máxima [ug / m3]:
C157: Concentración media anual [ug / m3]:
B160: Ozono (O3)
C162: Concentración media diaria mínima [ug / m3]:
C165: Concentración media diaria máxima [ug / m3]:
C168: Concentración media anual [ug / m3]:

Sheet Carretera (hidden)
D3: Datos de entrada del transporte por carretera
E8: Año: | N8: 2019 | AC8: Tipo de viaje: | AI8: No aplica
E11: Peso bruto del vehículo (t): | N11: Vehículo ligero (<3.5 t) | AC11: Tipo de mercancía: | AI11: No aplica
E14: Factor de carga (%): | N14: 24 | AI14: Not applicable
E17: Distancia total (milliones km): | N17: 0 | AC17: Nº vehículos (k): | AI17: 0
E20: Milliones ton.km: | N20: 0 | AC20: Años vehículos: | AI20: No aplica
E23: Tipo de combustible: | N23: E12 gasolina blend | AC23: Unidad combustible: | AI23: litro
E26: Consumo (l/100 km)*: | N26: 0 | AC26: Electricidad FE2*, 3*: | AI26: No aplica
E29: Emisiones (Millones de toneladas)
L32: CO2: | Q32: 0 | AB32: CO2e: | AG32: 0
D39: * Consumo de combustible (litros / 100 km), (galones / 100 km), (kg / 100 km) o (kWh / 100 km), según el tipo de combustible y su unidad respectiva.
D41: 2 * Factores de emisión de electricidad (g CO2e por kWh), cuando los usuarios eligen la electricidad como tipo de energía.
D43: 3 * La Agencia Internacional de Energía (AIE) compila y publica listas actualizadas anualmente de factores nacionales de emisión de electricidad, y recomendamos que las ciudades lo utilicen como fuente de información. Se pueden encontrar otras fuentes disponibles en https://www.carbonfootprint.com/docs/2019_06_emissions_factors_sources_for_2019_electricity.pdf.

Sheet Upgrades log (hidden)
A1: 2020-03-19 | B1: Message when someone selects a vehicle (motorcycle, rickshaw, etc.) and the ef is not known. Spanish version does not include it.

Sheet City Parameters (hidden)
A1: City | B1: Region | D1: Climate | F1: Boundaries
A2: Buenos aires | B2: África | D2: Tropical | F2: Administrativos
A3: Rosario | B3: Asia del Este | D3: Dry | F3: Geográficos
A4: Santa Fe | B4: Europa | D4: Moderate
A5: Bogotá | B5: América Latina & Caribe | D5: Continental
A6: Manizales | B6: Norte de Áfirca, Asia del oeste y mediando este | D6: Polar
A7: Cordoba | B7: Norte América
A8: Metropolitan Area of the Aburrá Valley (AMVA) | B8: Oceania
A9: Kochi | B9: Sur de Asia
A10: Panaji | B10: Sureste de Asia
A11: Shimla

Sheet Carretera DB (hidden)
A1: Año | B1: Peso bruto del vehículo (t) | C1: Factor de carga | D1: Distancia total (millones de km) | E1: Milliones ton.km | F1: Tipo de combustible | G1: Unidad de combustible | H1: Consumo (l/100km) | I1: CO2 | J1: CO2e | K1: Límites de la ciudad | L1: Tipo de mercancía | M1: Refrigerado | N1: Número de vehículos | O1: Edad de los vehículos

Sheet Common parameters (hidden)
A1: Year | B1: Type of trip flow | D1: Boolean | F1: Off-hour deliveries | G1: Reduction | H1: fuel units
A2: =Ciudad!F$18 -> 2019 | B2: No aplica | D2: Si | F2: 7PM - 6AM | G2: 56 | H2: kg
A3: =Ciudad!H$18 -> 2020 | B3: Dentro de | D3: No | F3: 6PM - 10PM | G3: 13 | H3: litro
A4: =Ciudad!J$18 -> 2021 | B4: Desde | F4: 6AM - 7PM | G4: 0 | H4: galón
A5: =Ciudad!L$18 -> 2022 | B5: Hacia | H5: kWh
B6: A través de

Sheet City Graphs data (hidden)
A1: year | C1: =Ciudad!$F$18 -> 2019 | D1: =Ciudad!$H$18 -> 2020 | E1: =Ciudad!$J$18 -> 2021 | F1: =Ciudad!$L$18 -> 2022
A2: Within | B2: HGV
B3: LGV
B4: Total | C4: =C2+C3 -> 0 | D4: =D2+D3 -> 0 | E4: 0 | F4: 0
A5: From | B5: HGV
B6: LGV
B7: Total | C7: =C5+C6 -> 0 | D7: =D5+D6 -> 0 | E7: =E5+E6 -> 0 | F7: =F5+F6 -> 0
A8: To | B8: HGV
B9: LGV
B10: Total | C10: =C8+C9 -> 0 | D10: =D8+D9 -> 0 | E10: =E8+E9 -> 0 | F10: =F8+F9 -> 0
A11: Through | B11: HGV
B12: LGV
B13: Total | C13: =C11+C12 -> 0 | D13: =D11+D12 -> 0 | E13: =E11+E12 -> 0 | F13: =F11+F12 -> 0

Sheet Ferroviario Parámetros (hidden)
A1: Type of fuels | B1: Type of goods | C1: Age of Locomotives | D1: Load Characteristics | E1: Payload capacity Wagon (t) | F1: Emission intensity (g CO2e/tkm) (Ambient, Diesel) | G1: Emission intensity (g CO2e/tkm) (Refrigerated, Diesel) | H1: uplift values (Asia) | I1: Emission intensity (g CO2e/tkm) (Ambient, Petrol[gasoline]) | J1: Emission intensity (g CO2e/tkm) (Refrigerated, Petrol[gasoline]) | K1: uplift values %(Asia) | L1: Emission intensity (g CO2e/tkm) (Ambient, LPG) | M1: Emission intensity (g CO2e/tkm) (Refrigerated, LPG) | N1: uplift values %(Asia) | O1: Emission intensity (g CO2e/tkm) (Ambient, CNG) | P1: Emission intensity (g CO2e/tkm) (Refrigerated, CNG) | Q1: uplift values %(Asia) | R1: Emission intensity (g CO2e/tkm) (Ambient, LNG) | S1: Emission intensity (g CO2e/tkm) (Refrigerated, LNG) | T1: uplift values %(Asia) | U1: kWh/t-km (Electricity) | V1: kWh/t-km (Electricity) | W1: uplift values % | X1: Load factor (%)
A2: Diésel (litro) | B2: Voluminosa | C2: De 0 a 5 | D2: Promedio / mixto | E2: 61 | F2: 28 | G2: 0 | H2: 0 | U2: 0.0322 | W2: 0 | X2: 60
A3: Electricidad (kWh) | B3: Media | C3: From 5 to 10 | D3: Envase | E3: 65 | F3: 25 | U3: 0.0294 | X3: 60
A4: Diésel (galón) | B4: Granel | C4: From 10 to 15 | D4: Coches | E4: 21 | F4: 60 | G4: 0 | H4: 0 | U4: 0.0693 | W4: 0 | X4: 50
B5: No aplica | C5: Over 15 | D5: Productos quimicos | E5: 55 | F5: 24 | G5: 0 | H5: 0 | U5: 0.0277 | W5: 0 | X5: 85
C6: No aplica | D6: Carbón y acero | E6: 65 | F6: 19 | G6: 0 | H6: 0 | U6: 0.0215 | W6: 0 | X6: 100
D7: Materiales de construcción | E7: 54 | F7: 23 | G7: 0 | H7: 0 | U7: 0.0268 | W7: 0 | X7: 100
D8: Productos manufacturados | E8: 54 | F8: 24 | G8: 0 | H8: 0 | U8: 0.0282 | W8: 0 | X8: 100
D9: Cereales | E9: 63 | F9: 18 | G9: 0 | H9: 0 | U9: 0.0212 | W9: 0 | X9: 75
D10: Camión + remolque en tren | E10: 63 | F10: 130 | G10: 0 | H10: 0 | U10: 0 | W10: 0 | X10: 100
D11: Remolque solo en tren | E11: 63 | F11: 90 | G11: 0 | H11: 0 | U11: 0 | W11: 0 | X11: 85
D15: 61

Sheet Fluvial Parámetros (hidden)
A1: Tipo de combustibel | B1: tipode mercancia | C1: Edad de las embarcaciones | D1: tipo de buque | E1: Carga util | F1: Emision por intesidad(g CO2e/tkm) (Ambiente, Diesel) | G1: Emision por intesidad(g CO2e/tkm) (Refrigerado, Diesel) | H1: Factor de corrección(Asia) | I1: Emision por intesidad(g CO2e/tkm) (Ambiente, Petrol[gasoline]) | J1: Emision por intesidad(g CO2e/tkm) (Refrigerado, Petrol[gasoline]) | K1: Factor de corrección %(Asia) | L1: factor de carga (%)
A2: Diésel Fluvial (litro) | B2: Voluminoso | C2: 0-5 | D2: Barcos a motor <80 m [1000T] | E2: 477 | F2: 30 | G2: 0 | H2: 0 | L2: 55
B3: Contenedores | C3: 5-10 | D3: Buques de motor 85-110 m [1000 - 2000T] | E3: 1497 | F3: 19 | G3: 0 | H3: 0 | L3: 52
B4: Paletas | C4: 10-15 | D4: Buques Motos 135 m [2000 - 3000T] | E4: 2135 | F4: 19 | G4: 0 | H4: 0 | L4: 50
B5: Masa - limitada | C5: > 15 | D5: Convoyes acoplados [163-185 m] | E5: 2903 | F5: 17 | G5: 0 | H5: 0 | L5: 61
B6: Volumen limitado | C6: No aplica | D6: Convoy empujado - bote de empuje + 2 barcazas | E6: 3000 | F6: 17 | G6: 0 | H6: 0 | L6: 70
B7: No aplica | D7: Convoy empujado - bote de empuje + 4/5 barcazas | E7: 8000 | F7: 10 | G7: 0 | H7: 0 | I7: 1000 | K7: 13 | L7: 70
D8: Convoy empujado - bote de empuje + 6 barcazas | E8: 10000 | F8: 7.4 | G8: 0 | H8: 0 | L8: 70
D9: Buques cisterna | E9: 4195 | F9: 21 | G9: 0 | H9: 0 | L9: 65
D10: Buques portacontenedores 110m | E10: 1410 | F10: 26 | G10: 0 | H10: 0 | L10: 75
D11: Contenedores 135 | E11: 3141 | F11: 20 | G11: 0 | H11: 0 | L11: 75
D12: Buques portacontenedores - convoyes acoplados | E12: 2502 | F12: 20 | G12: 0 | H12: 0 | L12: 68

Sheet Fluvial DB (hidden)
A1: Año | B1: Peso bruto de la embarcación (t) | C1: Factor de carga | D1: Distancia total (millones de km) | E1: Milliones ton.km | F1: Tipo de combustible | G1: Eficiencia energética | H1: CO2 | I1: CO2e | J1: Límites de la ciudad | K1: Tipo de mercancía | L1: Refrigerado | M1: Número de Embarcaciones | N1: Edad de las embarcaciones

Sheet Ferroviario (hidden)
D3: Datos de entrada de transporte ferroviario
E8: Año: | N8: 2019 | AC8: Tipo de viaje: | AI8: No aplica
E11: Tipo de tren: | N11: Promedio / mixto | AC11: Tipo de mercancía: | AI11: No aplica
E14: Factor de carga (%): | N14: 60 | AI14: Not applicable
E17: Distancia total (km): | N17: 0 | AC17: Nº. De vagones: | AI17: 20
E20: Milliones ton.km: | N20: 0 | AC20: Edad locomotora: | AI20: No aplica
E23: Tipo de tracción (unidad): | N23: Diésel (litro)
E26: Consumo (l/100 km)*: | N26: 0 | AC26: Electricidad FE 2*, 3*: | AI26: No aplica
E29: Emisiones (Millones de toneladas)
L32: CO2: | Q32: 0 | AB32: CO2e: | AG32: 0
D39: * Consumo de combustible (litros / 100 km), (galones / 100 km), (kg / 100 km) o (kWh / 100 km), según el tipo de combustible y su unidad respectiva.
D41: 2 * Factores de emisión de electricidad (g CO2e por kWh), cuando los usuarios eligen la electricidad como tipo de energía.
D43: 3 * La Agencia Internacional de Energía (AIE) compila y publica listas actualizadas anualmente de factores nacionales de emisión de electricidad, y recomendamos que las ciudades lo utilicen como fuente de información. Se pueden encontrar otras fuentes disponibles en https://www.carbonfootprint.com/docs/2019_06_emissions_factors_sources_for_2019_electricity.pdf.

Sheet Fluvial (hidden)
D3: Datos entrada transporte fluvial
E8: Año: | N8: 2019 | AC8: Tipo de viaje: | AI8: No aplica
E11: Tipo de buque (peso bruto): | N11: Barcos a motor <80 m [1000T] | AC11: Tipo de mercancía: | AI11: No aplica
E14: Factor de carga (%): | N14: 55 | AI14: Not applicable
E17: Distancia total (km): | N17: 0 | AC17: Nº embarcaciones: | AI17: 0
E20: Milliones ton.km: | N20: 0 | AC20: Edad embarcaciones: | AI20: No aplica
E23: Tipo combustible (unidad): | N23: Diésel Fluvial (litro)
E26: Consumo (l/100 km)*: | N26: 0
E29: Emisiones (Millones toneladas)
L32: CO2: | Q32: 0 | AB32: CO2e: | AG32: 0
D39: * Consumo de combustible (litros / 100 km), (galones / 100 km), (kg / 100 km) o (kWh / 100 km), según el tipo de combustible y su unidad respectiva.

Sheet Rail Graphs Data (hidden)
A1: Measurement | B1: =Ciudad!$F$18 -> 2019 | C1: =Ciudad!$H$18 -> 2020 | D1: =Ciudad!$J$18 -> 2021 | E1: =Ciudad!$L$18 -> 2022
A2: CO2e (million tonnes) | B2: 2.961229829e-06 | C2: 0 | D2: 0 | E2: 0
A3: Million tonne-km | B3: 0.531312 | C3: 0 | D3: 0 | E3: 0
B7: 0
B8: 0
A9: Promedio / mixto | B9: 0
A10: Envase | B10: 0
A11: Coches | B11: 0
A12: Productos quimicos | B12: 0
A13: Carbón y acero | B13: 2.14656e-07
A14: Materiales de construcción | B14: 2.071656e-06
A15: Productos manufacturados | B15: 1.573600194e-07
A16: Cereales | B16: 4.833864e-07
A17: Camión + remolque en tren | B17: 3.377429885e-08
A18: Remolque solo en tren | B18: 3.971110976e-10
A20: Diésel | B20: 5.171838294e-07 | C20: =B20/SUM(B$20:B$21) -> 0.1746517019
A21: Electricidad | B21: 2.444046e-06 | C21: =B21/SUM(B$20:B$21) -> 0.8253482981
B22: 1

Sheet Reparto Fuera Horario (hidden)
B2: Carretera - Evaluación Impacto del reparto fuera de horario
C5: Año de referencia: | D5: =Ciudad!F18 -> 2019
C6: Año a predecir: | D6: 2050
C7: Tipo de vehículo: | D7: Camión rígido (7.5 t-12t)
C8: Refrigerado: | D8: No
C9: Average truck tonne-km (million): | D9: 1
C10: Tasa crecimiento carretero (%): | D10: =Predicción!I6 -> 3 | F10: *
C11: Periodos fuera de horario: | D11: 6PM - 10PM | F11: **
D14: Name | F14: EF (g CO2e/t.km)
C15: Combustible referencia: | D15: Diésel puro | F15: 240.00
C16: Factor de corrección (Asia, África): | D16: 0 | F16: %
D21: Referencia | E21: Pronóstico | F21: Objetivo
D22: =D5 -> 2019 | E22: =D6 -> 2050 | F22: =D6 -> 2050
C23: Millones km: | D23: 34.00 | E23: =D23*(1+$D$10/100)^($E$22-$D$22) -> 85.00 | F23: =D23*(1+$D$10/100)^($E$22-$D$22) -> 85.00
C24: Millones t.km: | D24: 102.00 | E24: =D24*(1+$D$10/100)^($E$22-$D$22) -> 255.01 | F24: =D24*(1+$D$10/100)^($E$22-$D$22) -> 255.01
C25: Millones toneladas CO2e: | D25: 0.0245 | E25: 0.0612 | F25: 0.0532
C26: Reducción de emisiones CO2e (%): | F26: =IF(F25=0,0,(1-F25/E25)*100) -> 13 | G26: ***
B31: *La última estimación del Foro Internacional de Transporte (ITF) sugiere que la demanda mundial de transporte de carga crece a 3.1 por ciento y 3.4 por ciento anual hasta 2030 y 2050 respectivamente (ITF Transport Outlook 2019). Cabe señalar que puede ser engañoso depender de datos globales, y se deben buscar datos de buena calidad en el país siempre que sea posible.
B32: **Fuente: Holguín-Veras, José & Encarnación, Trilce & Gonzalez-Calderon, Carlos & Winebrake, James & Wang, Cara & Kyle, Sofia & Herazo-Padilla, Nilson & Kalahasthi, Lokesh & Adarme, Wilson & Cantillo, Victor & Yoshizaki, Hugo & Garrido, Rodrigo. (2016). Direct impacts of off-hour deliveries on urban freight emissions. Transportation Research Part D: Transport and Environment.
B33: ***La magnitud de las reducciones de emisiones depende de la extensión del cambio del tiempo de entrega. Un estudio en tres ciudades principales de las Américas indica que OHD produce emisiones que son 13 a 56 por ciento más bajas que las producidas por entregas realizadas durante horas regulares en rutas similares. Sin embargo, esto podría no ser aplicable a otras ciudades o regiones..

Sheet Factor Emisión Consumo (hidden)
B2: kg CO2 / kg fuel | E2: kg CO2e / kg fuel | H2: Density | I2: kg CO2 / l fuel | L2: kg CO2e / l fuel
B3: WTT CO2 | C3: TTW CO2 | D3: WTW CO2 | E3: WTT CO2e | F3: TTW CO2e | G3: WTW CO2e | I3: WTT CO2 | J3: TTW CO2 | K3: WTW CO2 | L3: WTT CO2e | M3: TTW CO2e | N3: WTW CO2e
A4: HFO | B4: =D4-C4 -> 0.27 | C4: 3.11 | D4: =1.086*C4 -> 3.38 | E4: =G4-F4 -> 0.26 | F4: 3.15 | G4: 3.41 | H4: 0.970 | I4: =B4*$H4 -> 0.26 | J4: 3.02 | K4: 3.28 | L4: 0.25 | M4: 3.06 | N4: 3.31
A5: Diésel Fluvial (litro) | B5: 0.68 | C5: 3.21 | D5: =1.212*C5 -> 3.89 | E5: 0.69 | F5: =1.01*C5 -> 3.24 | G5: 3.92 | H5: 0.735 | I5: 0.50 | J5: 2.36 | K5: 2.86 | L5: 0.50 | M5: 2.38 | N5: 2.88
A6: Gasolina pura | B6: 0.61 | C6: 3.06999 | D6: 3.68 | E6: 0.62 | F6: 3.10 | G6: 3.72 | H6: 0.8 | I6: 0.49 | J6: 2.26 | K6: 2.82 | L6: 0.50 | M6: 2.48 | N6: 2.73
A7: Diésel puro | B7: 0.64 | C7: 3.19 | D7: 3.82 | E7: 0.65 | F7: 3.21 | G7: 3.86 | H7: 0.845 | I7: 0.53 | J7: 2.69 | K7: 3.18 | L7: 0.54 | M7: 2.67 | N7: 3.26
A8: Biodiésel B100 | G8: 2.48 | H8: 0.885 | N8: 2.20
A9: B10 diésel blend | G9: 3.72 | N9: 3.16
A10: B25 blend | D10: 0 | G10: 3.52 | K10: 0 | N10: 3.0
A11: Bioetanol E100 | D11: 0 | G11: 1.57 | H11: 0.7915 | K11: 0 | N11: 1.24
A12: E12 gasolina blend | D12: 0 | G12: 3.46 | K12: 0 | N12: 2.56
A13: E27 blend | D13: 0 | G13: 3.14 | K13: 0 | N13: 2.33
A14: GLP | B14: 0.36 | C14: 3.07 | D14: 3.43 | E14: 0.36 | F14: 3.10 | G14: 3.46 | H14: 0.550 | I14: 0.20 | J14: 1.69 | K14: 1.88 | L14: 0.20 | M14: 1.70 | N14: 1.90
A15: GNC | B15: 0.00 | C15: 0.00 | D15: 0.00 | E15: 0.39 | F15: 2.68 | G15: 3.07 | H15: 0.000 | I15: 0.00 | J15: 0.00 | K15: 0.00 | L15: 0.00 | M15: 0.00 | N15: 0.00
A16: GNL | B16: 0.00 | C16: 0.00 | D16: 0.00 | E16: 0.94 | F16: 2.68 | G16: 3.62 | I16: 0.00 | J16: 0.00 | K16: 0.00 | L16: 0.00 | M16: 0.00 | N16: 0.00
A17: Biometano | B17: 0.00 | C17: 0.00 | D17: 0.00 | E17: 0.49 | F17: 0.00 | G17: 0.49 | I17: 0.00 | J17: 0.00 | K17: 0.00 | L17: 0.00 | M17: 0.00 | N17: 0.00
A18: Bio GNL | B18: 0.00 | C18: 0.00 | D18: 0.00 | E18: 1.04 | F18: 0.00 | G18: 1.04 | H18: 0.000 | I18: 0.00 | J18: 0.00 | K18: 0.00 | L18: 0.00 | M18: 0.00 | N18: 0.00
A19: Diésel Fluvial | D19: 0.00 | G19: 0.00 | I19: =I5/$D$34 -> 0.13 | J19: 0.62 | K19: 0.76 | L19: 0.13 | M19: 0.63 | N19: 0.76
A20: Gasolina pura | D20: 0.00 | G20: 0.00 | I20: 0.13 | J20: 0.6 | K20: 0.75 | L20: 0.13 | M20: 0.66 | N20: 0.72
A21: Diésel puro | D21: 0.00 | G21: 0.00 | I21: 0.14 | J21: 0.71 | K21: 0.84 | L21: 0.14 | M21: 0.71 | N21: 0.86
A22: Biodiésel B100 | D22: 0.00 | G22: 0.00 | K22: 0 | M22: 0 | N22: 0.58
A23: B10 diésel blend | D23: 0.00 | G23: 0.00 | K23: 0 | M23: 0 | N23: 0.84
A24: B25 blend | D24: 0.00 | G24: 0.00 | K24: 0 | M24: 0 | N24: 0.79
A25: Bioetanol E100 | D25: 0.00 | G25: 0.00 | K25: 0 | M25: 0 | N25: 0.33
A26: E12 gasolina blend | D26: 0.00 | G26: 0.00 | K26: 0 | M26: 0 | N26: 0.68
A27: E27 blend | D27: 0.00 | G27: 0.00 | K27: 0 | M27: 0 | N27: 0.62
A28: LPG | D28: 0.00 | G28: 0.00 | I28: 0.05 | J28: 0.45 | K28: 0.5 | L28: 0.05 | M28: 0.45 | N28: 0.5
C33: litro | D33: Galón
B34: Conversion | C34: 1 | D34: 3.78
B37: Pure diesel (national value)
B38: Biodiesel B100 (European value)
B39: Standard B10 diesel blend (calculado)
B40: B25 blend (calculado)
B41: Pure gasoline (national value)
B42: Bioethanol E100 (European value)
B43: Standard E12 gasoline blend
B44: E27 blend (calculado)
B45: Version herramienta Ingles
B46: sin usar

Sheet Predicción (hidden)
B2: Evaluación del impacto
C6: Año referencia: | E6: =Ciudad!F18 -> 2019 | G6: Incremento transporte (%): | I6: 3 | J6: *
G9: Año referencia | H9: Predicción
D10: Transporte carga carretera (CO2e millones toneladas) | G10: =E6 -> 2019 | H10: 2025 | I10: 2030 | J10: 2050
G11: 0.02280588775 | H11: =$G$11*(1+$I$6/100)^($H$10-$G$10) -> 0.02723142264 | I11: =$G$11*(1+$I$6/100)^($I$10-$G$10) -> 0.03156868228 | J11: =$G$11*(1+$I$6/100)^($J$10-$G$10) -> 0.05701655172
B15: Evaluación de las acciones
C18: Medida | F18: Tipo | H18: Descripción
D19: Cambio de combustible | F19: Mejorar | H19: Esto incluye tecnologías para promover la alta eficiencia y los combustibles alternativos, como los biocombustibles, bio GNC, así como bio GNL, etc.
D20: Reducción de la distancia | F20: Evitar | H20: Esto implica la reducción de los kilómetros recorridos del vehículo de un tipo específico de vehículo.
D21: Increase load factor | F21: Improve | H21: Increase vehicles efficiency utilization of an specific type of vehicle
D22: Acces restriction (type vehicle) | F22: Shift | H22: Replace a percentage of a type of vehicle with smaller ones
D23: Conducción eficiente | F23: Mejorar | H23: Esto implica capacitar a los conductores para conducir de manera ecológica a fin de ahorrar combustible y reducir las emisiones.
D24: Entregas fuera de horario | F24: Mejorar | H24: También conocido como entregas “fuera de horario”, esto se enfoca en cambiar las entregas de carga del período pico al período fuera de hora.
B27: * La última estimación del Foro Internacional de Transporte (ITF) sugiere que la demanda global de transporte de carga crece a 3.1 por ciento y 3.4 por ciento anual hasta 2030 y 2050 respectivamente (ITF Transport Outlook 2019). Debe tenerse en cuenta que puede ser engañoso confiar en valores globales. Se deben buscar datos globales y de buena calidad en el país siempre que sea posible.

Sheet Resultados (hidden)
D4: Ciudad: | E4: =Ciudad!D4 -> 0 | I4: CO2e (millones toneladas)
D5: Pais: | E5: =Ciudad!D6 -> 0 | I5: Carretera | J5: ='Road Graphs data'!$B$2 -> 0.02280588775
D6: Area (km2): | E6: =Ciudad!D8 -> 0 | I6: Ferroviario | J6: ='Rail Graphs Data'!B2 -> 2.961229829e-06
C7: Población (k): | E7: =Ciudad!F21 -> 0 | I7: Fluvial | J7: ='Water Graphs data'!B2 -> 0.4143135205
D8: PIB (millones US$): | E8: =Ciudad!F23 -> 0

Sheet Reducción Distancia (hidden)
B2: Carretera - Evaluación del Impacto de reducir la distancia
C5: Año de referencia: | D5: =Ciudad!F18 -> 2019
C6: Año a predecir: | D6: 2050
C7: Tipo de vehículo: | D7: Camión rígido (7.5 t-12t)
C8: Refrigerado: | D8: No
C9: Average truck tonne-km (million): | D9: 1
C10: Tasa crecimiento carretero (%): | D10: =Predicción!I6 -> 3 | F10: *
C11: Tasa reducción distancia (%): | D11: 23
D13: Nombre | F13: FE (g CO2e/t.km)
C14: Combustible referencia: | D14: Diésel puro | F14: 240.00
C15: Factor de corrección (Asia, África): | D15: 0 | E15: %
D20: Referencia | E20: Pronóstico | F20: Objetivo
D21: =D5 -> 2019 | E21: =D6 -> 2050 | F21: =D6 -> 2050
C22: Millones km: | D22: 34.00 | E22: =D22*(1+$D$10/100)^($E$21-$D$21) -> 85.00 | F22: =D22*(1+$D$10/100)^($E$21-$D$21)*(1-(D11/100)) -> 65.45
C23: Millones t.km: | D23: 102.00 | E23: =D23*(1+$D$10/100)^($E$21-$D$21) -> 255.01 | F23: =D23*(1+$D$10/100)^($E$21-$D$21)*(1-(D11/100)) -> 196.36
C24: Millones toneladas CO2e: | D24: 0.0245 | E24: 0.0612 | F24: 0.0471
C25: Reducción de emisiones CO2e (%): | F25: =IF(F24=0,0,(1-F24/E24)*100) -> 23
B29: * La última estimación del Foro Internacional de Transporte (ITF) sugiere que la demanda global de transporte de carga crece a 3.1 por ciento y 3.4 por ciento anual hasta 2030 y 2050 respectivamente (ITF Transport Outlook 2019). Cabe señalar que puede ser engañoso depender de datos globales, y se deben buscar datos de buena calidad en el país siempre que sea posible.

Sheet Ferroviario DB (hidden)
A1: Año | B1: Tipo de tren | C1: Factor de carga | D1: Distancia total (km) | E1: Millones de ton.km | F1: Tipo de tracción | G1: Consumo de combustible | H1: CO2 | I1: CO2e | J1: Límites ciudad | K1: Tipo de mercancía | L1: Refrigerado | M1: Número de vagones | N1: Edad de las locomotoras

Sheet Conducción Eficiente (hidden)
B2: Carretera - Conducción Eficiente Evaluación del Impacto
C5: Año de referencia: | D5: =Ciudad!F18 -> 2019
C6: Año a predecir: | D6: 2050
C7: Tipo de vehículo: | D7: Camión rígido (7.5 t-12t)
C8: Refrigerado: | D8: No
C9: Average truck tonne-km (million): | D9: 1
C10: Tasa crecimiento carretero (%): | D10: =Predicción!I6 -> 3 | F10: *
C11: Tasa reducción conduccion eficiente (%): | D11: 10 | F11: **
D13: Nombre | F13: FE (gCO2e/t.km)
C14: Combustible referencia: | D14: Diésel puro | F14: 240.00
C15: Factor de corrección (Asia, África): | D15: 1.00 | F15: 0
C16: Factor de corrección (Asia, África): | D16: 0 | E16: %
D21: Referencia | E21: Pronóstico | F21: Objetivo
D22: =D5 -> 2019 | E22: =D6 -> 2050 | F22: =D6 -> 2050
C23: Millones km: | D23: 34.00 | E23: =D23*(1+$D$10/100)^($E$22-$D$22) -> 85.00 | F23: =D23*(1+$D$10/100)^($E$22-$D$22) -> 85.00
C24: Millones t.km: | D24: 102.00 | E24: =D24*(1+$D$10/100)^($E$22-$D$22) -> 255.01 | F24: =D24*(1+$D$10/100)^($E$22-$D$22) -> 255.01
C25: Millones toneladas CO2e: | D25: 0.0245 | E25: 0.0612 | F25: 0.0551
C26: Reducción de emisiones CO2e (%): | F26: =IF(F25=0,0,(1-F25/E25)*100) -> 10
B31: *La última estimación del Foro Internacional de Transporte (ITF) sugiere que la demanda mundial de transporte de carga crece a 3.1 por ciento y 3.4 por ciento anual hasta 2030 y 2050 respectivamente (ITF Transport Outlook 2019). Cabe señalar que puede ser engañoso depender de datos globales, y se deben buscar datos de buena calidad en el país siempre que sea posible.
B32: **El valor predeterminado es 10 por ciento; Fuente: "ITS4CV" - ITS para vehículos comerciales. Estudio del alcance de los sistemas inteligentes de transporte para reducir las emisiones de CO2 y aumentar la seguridad de los vehículos pesados, autobuses y autocares. (2016) Recuperado de http://erticonetwork.com/wp-content/uploads/2016/09/ITS4CV-Report-final-2016-09-09.pdf

Sheet Cambio Combustible (hidden)
B2: Carretera - Evaluación del Impacto de cambiar de tecnología de combustible
C5: Año de referencia: | D5: =Ciudad!F18 -> 2019
C6: Año a predecir: | D6: 2050
C7: Tipo de vehículo: | D7: Camión rígido (7.5 t-12t)
C8: Refrigerado: | D8: No
C9: Average truck tonne-km (million): | D9: 1
C10: Tasa crecimiento carretero (%): | D10: =Predicción!I6 -> 3 | F10: *
D13: Tipo de combustible | F13: FE (gCO2e/t.km)*2 | G13: Fuente generación electricidad | I13: FE(gCO2e/kWh)*3
C14: Combustible referencia: | D14: Diésel puro | F14: 240 | G14: Base de carbón alta | I14: 850
C15: Combustible a usar: | D15: GNC | F15: 220 | G15: Altamente descarbonizado | I15: 30
C16: Factor corrección (Asia, África): | D16: 0 | E16: %
D20: Referencia | E20: Pronóstico | F20: Objetivo
D21: =D5 -> 2019 | E21: =D6 -> 2050 | F21: =D6 -> 2050
C22: Millones km: | D22: 34.00 | E22: =D22*(1+$D$10/100)^($E$21-$D$21) -> 85.00 | F22: =D22*(1+$D$10/100)^($E$21-$D$21) -> 85.00
C23: Millones t.km: | D23: 102.00 | E23: =D23*(1+$D$10/100)^($E$21-$D$21) -> 255.01 | F23: =D23*(1+$D$10/100)^($E$21-$D$21) -> 255.01
C24: Millones toneladas CO2e: | D24: 0.0245 | E24: 0.0612 | F24: 0.0561
C25: Reducción de emisiones CO2e (%): | F25: =IF(F24=0,0,(1-F24/E24)*100) -> 8
B30: ** La última estimación del Foro Internacional de Transporte (ITF) sugiere que la demanda global de transporte de carga crece a 3.1 por ciento y 3.4 por ciento anual hasta 2030 y 2050 respectivamente (ITF Transport Outlook 2019). Cabe señalar que puede ser engañoso depender de datos globales, y se deben buscar datos de buena calidad en el país siempre que sea posible.
B32: *2 Se refiere al valor de kWh / t-km cuando los usuarios eligen la electricidad como tipo de energía.
B33: *3Factores de emisión de electricidad (g CO2e por kWh) * cuando los usuarios eligen la electricidad como tipo de energía; La Agencia Internacional de Energía (AIE) compila y publica listas actualizadas anualmente de factores nacionales de emisión de electricidad, y recomendamos que las ciudades lo utilicen como fuente de información. Se pueden encontrar otras fuentes disponibles en https://www.carbonfootprint.com/docs/2019_06_emissions_factors_sources_for_2019_electricity.pdf

Sheet Road Graphs data (hidden)
A1: Measurement | B1: =Ciudad!$F$18 -> 2019 | C1: =Ciudad!$H$18 -> 2020 | D1: =Ciudad!$J$18 -> 2021 | E1: =Ciudad!$L$18 -> 2022
A2: CO2e (million tonnes) | B2: 0.02280588775 | C2: 0 | D2: 0 | E2: 0
A3: Million tonne-km | B3: 163.62 | C3: 0 | D3: 0 | E3: 0
B6: Number
A7: Carrito / carro no motorizado | B7: 0
A8: Bicicleta / bicicleta de carga | B8: 0
A9: Rickshaw motorizado / tuk tuk | B9: 0
A10: Motocicleta (2 ruedas) | B10: 0
A11: Tempo | B11: 0
A12: Vehículo ligero (<3.5 t) | B12: 0.0205869
A13: Camión rígido (3.5 t - 7.5 t)) | B13: 0
A14: Camión rígido (7.5 t-12t) | B14: 0.00221898775
A15: Camión rígido (12t-20t) | B15: 0
A16: Camión rígido (> 20t) | B16: 0
A17: Camiones y Remolques (> 20t) | B17: 0
B18: 0
A20: Gasolina pura | B20: 0 | C20: =B20/SUM(B$20:B$27) -> 0
A21: Diésel puro | B21: 0.00221898775 | C21: =B21/SUM(B$20:B$27) -> 0.1189079708
A22: Electricidad | B22: 0 | C22: 0
A23: Biodiésel B100 | B23: 0 | C23: 0
A24: B10 diésel blend | B24: 0 | C24: 0
A25: B25 blend | B25: 0.0164424 | C25: 0.8810920292
A26: Bioetanol E100 | B26: 0 | C26: 0
A27: E12 gasolina blend | B27: 0 | C27: 0
A28: E27 blend | B28: 0 | C28: 0
A29: GLP | B29: 0
A30: GNC | B30: 0.0041445
A31: GNL | B31: 0
A32: Biometano | B32: 0
A33: Bio GNL | B33: 0
B35: =SUM(B20:B25) -> 0.01866138775

Sheet Carretera parámetros (hidden)
A1: Tipos de combustibles | B1: Type of goods | C1: Age of vehicles | D1: Tipos de vehículos | E1: Carga útil (toneladas) | F1: FE por intensidad (g CO2e/ tkm) (Ambientee, Diésel) | G1: FE por intensidad (g CO2e/ tkm) (Refrigerado, Diesel) | H1: Factor de corrección (Asia) | I1: FE por intensidad (g CO2e/ tkm) (Ambiente, Petrol[gasoline]) | J1: FE por intensidad (g CO2e/ tkm) (Refrigerado, Petrol[gasoline]) | K1: Factor de corrección %(Asia) | L1: FE por intensidad (g CO2e/ tkm) (Ambiente, LPG) | M1: FE por intensidad (g CO2e/ tkm) (Refrigerado, LPG) | N1: Factor de corrección %(Asia) | O1: FE por intensidad (g CO2e/ tkm) (Ambiente, CNG) | P1: FE por intensidad (g CO2e/ tkm) (Refrigerado, CNG) | Q1: Factor de corrección %(Asia) | R1: FE por intensidad (g CO2e/ tkm) (Ambiente, LNG) | S1: FE por intensidad (g CO2e/ tkm) (Refrigerado, LNG) | T1: Factor de corrección %(Asia) | U1: Emission intensity (kWh/tkm) (Ambiente, electricity) | V1: Emission intensity (kWh/tkm) (Refrigerado, electricity) | W1: Factor de corrección %(Asia)
A2: HFO (litres) | B2: Volume goods | C2: From 0 to 5 | D2: Carrito / carro no motorizado | E2: 0.5 | F2: 0 | G2: 0 | H2: 0
A3: MDO (litres) | B3: Average goods | C3: From 5 to 10 | D3: Bicicleta / bicicleta de carga | E3: 0.5 | F3: 0 | G3: 0 | H3: 0
A4: Gasoline (litres) | B4: Bulk goods | C4: From 10 to 15 | D4: Rickshaw motorizado / tuk tuk | E4: 0.5 | F4: 0 | G4: 0 | H4: 0
A5: Aviation fuel (litres) | B5: Not applicable | C5: Over 15 | D5: Motocicleta (2 ruedas) | E5: 0.5 | F5: 0 | G5: 0 | H5: 0
A6: Diesel (litres) | C6: Not applicable | D6: Tempo | E6: 0.75 | F6: 0 | G6: 0 | H6: 13
A7: LPG (litres) | D7: Vehículo ligero (<3.5 t) | E7: 1.3 | F7: 680 | G7: 780 | H7: 13 | I7: 1000 | J7: 1150 | K7: 13 | L7: 660 | M7: 760 | N7: 13 | O7: 620 | P7: 710 | Q7: 13 | U7: 1.1 | W7: 13
A8: CNG (kg) | D8: Camión rígido (3.5 t - 7.5 t)) | E8: 2.3 | F8: 370 | G8: 415 | H8: 22 | O8: 360 | P8: 405 | Q8: 22 | U8: 0.5 | W8: 22
A9: LNG (kg) | D9: Camión rígido (7.5 t-12t) | E9: 5 | F9: 240 | G9: 270 | H9: 22 | O9: 220 | P9: 250 | Q9: 22 | U9: 0.4 | W9: 22
A10: HFO (gallons) | D10: Camión rígido (12t-20t) | E10: 8.4 | F10: 150 | G10: 170 | H10: 22 | O10: 150 | P10: 170 | Q10: 22 | R10: 180 | S10: 200 | T10: 22
A11: MDO (gallons) | D11: Camión rígido (> 20t) | E11: 15.3 | F11: 120 | G11: 145 | H11: 22 | O11: 120 | P11: 145 | Q11: 22 | R11: 140 | S11: 170 | T11: 22
A12: Gasoline (gallons) | D12: Camiones y Remolques (> 20t) | E12: 18.4 | F12: 90 | G12: 100 | H12: 22 | O12: 90 | P12: 100 | Q12: 22 | R12: 90 | S12: 100 | T12: 22
A13: Diesel (gallons)
A14: LPG (gallons)
A15: Biomethane (kg)
A16: Bio LNG (kg)
A19: Evaluación del impacto cambio combustible | B19: Evaluación impacto otro tipo
A20: Gasolina pura | B20: Diésel puro
A21: Diésel puro | B21: GNC
A22: Electricidad | B22: GLP
A23: Biodiésel B100 | B23: GNC
A24: B10 diésel blend | B24: Gasolina pura
A25: B25 blend | B25: Biometano
A26: Bioetanol E100 | B26: Bio GNL
A27: E12 gasolina blend
A28: E27 blend
A29: GLP
A30: GNC
A31: GNL
A32: Biometano
A33: Bio GNL

Sheet Road EF (hidden)
A1: Type of fuel | B1: Type of road vehicles | C1: (g CO2e/tkm) (Ambient) | D1: (g CO2e/tkm) (Refrigerated) | E1: uplift values (Asia)
A2: Diésel puro | B2: Carrito / carro no motorizado | C2: 0 | D2: 0 | E2: 0
A3: Diésel puro | B3: Bicicleta / bicicleta de carga | C3: 0 | D3: 0 | E3: 0
A4: Diésel puro | B4: Rickshaw motorizado / tuk tuk | C4: 0 | D4: 0 | E4: 0
A5: Diésel puro | B5: Motocicleta (2 ruedas) | C5: 0 | D5: 0 | E5: 0
A6: Diésel puro | B6: Tempo | C6: 0 | D6: 0 | E6: 13
A7: Diésel puro | B7: Vehículo ligero (<3.5 t) | C7: 680 | D7: 780 | E7: 13
A8: Diésel puro | B8: Camión rígido (3.5 t - 7.5 t)) | C8: 370 | D8: 415 | E8: 22
A9: Diésel puro | B9: Camión rígido (7.5 t-12t) | C9: 240 | D9: 270 | E9: 22
A10: Diésel puro | B10: Camión rígido (12t-20t) | C10: 150 | D10: 170 | E10: 22
A11: Diésel puro | B11: Camión rígido (> 20t) | C11: 120 | D11: 145 | E11: 22
A12: Diésel puro | B12: Camiones y Remolques (> 20t) | C12: 90 | D12: 100 | E12: 22
A13: Gasolina pura | B13: Carrito / carro no motorizado | C13: 0 | D13: 0 | E13: 0
A14: Gasolina pura | B14: Bicicleta / bicicleta de carga | C14: 0 | D14: 0 | E14: 0
A15: Gasolina pura | B15: Rickshaw motorizado / tuk tuk | C15: 0 | D15: 0 | E15: 0
A16: Gasolina pura | B16: Motocicleta (2 ruedas) | C16: 0 | D16: 0 | E16: 0
A17: Gasolina pura | B17: Tempo | C17: 0 | D17: 0 | E17: 0
A18: Gasolina pura | B18: Vehículo ligero (<3.5 t) | C18: 1000 | D18: 1150 | E18: 13
A19: Gasolina pura | B19: Camión rígido (3.5 t - 7.5 t)) | C19: 0 | D19: 0 | E19: 0
A20: Gasolina pura | B20: Camión rígido (7.5 t-12t) | C20: 0 | D20: 0 | E20: 0
A21: Gasolina pura | B21: Camión rígido (12t-20t) | C21: 0 | D21: 0 | E21: 0
A22: Gasolina pura | B22: Camión rígido (> 20t) | C22: 0 | D22: 0 | E22: 0
A23: Gasolina pura | B23: Camiones y Remolques (> 20t) | C23: 0 | D23: 0 | E23: 0
A24: GLP | B24: Carrito / carro no motorizado | C24: 0 | D24: 0 | E24: 0
A25: GLP | B25: Bicicleta / bicicleta de carga | C25: 0 | D25: 0 | E25: 0
A26: GLP | B26: Rickshaw motorizado / tuk tuk | C26: 0 | D26: 0 | E26: 0
A27: GLP | B27: Motocicleta (2 ruedas) | C27: 0 | D27: 0 | E27: 0
A28: GLP | B28: Tempo | C28: 0 | D28: 0 | E28: 0
A29: GLP | B29: Vehículo ligero (<3.5 t) | C29: 660 | D29: 760 | E29: 13
A30: GLP | B30: Camión rígido (3.5 t - 7.5 t)) | C30: 0 | D30: 0 | E30: 0
A31: GLP | B31: Camión rígido (7.5 t-12t) | C31: 0 | D31: 0 | E31: 0
A32: GLP | B32: Camión rígido (12t-20t) | C32: 0 | D32: 0 | E32: 0
A33: GLP | B33: Camión rígido (> 20t) | C33: 0 | D33: 0 | E33: 0
A34: GLP | B34: Camiones y Remolques (> 20t) | C34: 0 | D34: 0 | E34: 0
A35: GNC | B35: Carrito / carro no motorizado | C35: 0 | D35: 0 | E35: 0
A36: GNC | B36: Bicicleta / bicicleta de carga | C36: 0 | D36: 0 | E36: 0
A37: GNC | B37: Rickshaw motorizado / tuk tuk | C37: 0 | D37: 0 | E37: 0
A38: GNC | B38: Motocicleta (2 ruedas) | C38: 0 | D38: 0 | E38: 0
A39: GNC | B39: Tempo | C39: 0 | D39: 0 | E39: 0
A40: GNC | B40: Vehículo ligero (<3.5 t) | C40: 620 | D40: 710 | E40: 13
A41: GNC | B41: Camión rígido (3.5 t - 7.5 t)) | C41: 360 | D41: 405 | E41: 22
A42: GNC | B42: Camión rígido (7.5 t-12t) | C42: 220 | D42: 250 | E42: 22
A43: GNC | B43: Camión rígido (12t-20t) | C43: 150 | D43: 170 | E43: 22
A44: GNC | B44: Camión rígido (> 20t) | C44: 120 | D44: 145 | E44: 22
A45: GNC | B45: Camiones y Remolques (> 20t) | C45: 90 | D45: 100 | E45: 22
A46: GNL | B46: Carrito / carro no motorizado | C46: 0 | D46: 0 | E46: 0
A47: GNL | B47: Bicicleta / bicicleta de carga | C47: 0 | D47: 0 | E47: 0
A48: GNL | B48: Rickshaw motorizado / tuk tuk | C48: 0 | D48: 0 | E48: 0
A49: GNL | B49: Motocicleta (2 ruedas) | C49: 0 | D49: 0 | E49: 0
A50: GNL | B50: Tempo | C50: 0 | D50: 0 | E50: 0
A51: GNL | B51: Vehículo ligero (<3.5 t) | C51: 0 | D51: 0 | E51: 0
A52: GNL | B52: Camión rígido (3.5 t - 7.5 t)) | C52: 0 | D52: 0 | E52: 0
A53: GNL | B53: Camión rígido (7.5 t-12t) | C53: 0 | D53: 0 | E53: 0
A54: GNL | B54: Camión rígido (12t-20t) | C54: 180 | D54: 200 | E54: 22
A55: GNL | B55: Camión rígido (> 20t) | C55: 140 | D55: 170 | E55: 22
A56: GNL | B56: Camiones y Remolques (> 20t) | C56: 90 | D56: 100 | E56: 22
A57: Electricidad | B57: Carrito / carro no motorizado | C57: 0 | D57: 0 | E57: 0
A58: Electricidad | B58: Bicicleta / bicicleta de carga | C58: 0 | D58: 0 | E58: 0
A59: Electricidad | B59: Rickshaw motorizado / tuk tuk | C59: 0 | D59: 0 | E59: 0
A60: Electricidad | B60: Motocicleta (2 ruedas) | C60: 0 | D60: 0 | E60: 0
A61: Electricidad | B61: Tempo | C61: 0 | D61: 0 | E61: 0
A62: Electricidad | B62: Vehículo ligero (<3.5 t) | C62: 1.1 | D62: 0 | E62: 0
A63: Electricidad | B63: Camión rígido (3.5 t - 7.5 t)) | C63: 0.5 | D63: 0 | E63: 0
A64: Electricidad | B64: Camión rígido (7.5 t-12t) | C64: 0.4 | D64: 0 | E64: 0
A65: Electricidad | B65: Camión rígido (12t-20t) | C65: 0 | D65: 0 | E65: 0
A66: Electricidad | B66: Camión rígido (> 20t) | C66: 0 | D66: 0 | E66: 0
A67: Electricidad | B67: Camiones y Remolques (> 20t) | C67: 0 | D67: 0 | E67: 0

Sheet Water Graphs data (hidden)
A1: Measurement | B1: =Ciudad!F18 -> 2019 | C1: =Ciudad!H18 -> 2020 | D1: =Ciudad!J18 -> 2021 | E1: =Ciudad!L18 -> 2022
A2: CO2e (million tonnes) | B2: 0.4143135205 | C2: 0 | D2: 0 | E2: 0 | T2: 8
A3: Million tonne-km | B3: 0.06912812 | C3: 0 | D3: 0 | E3: 0
A7: Barcos a motor <80 m [1000T] | B7: 0.414312497
A8: Buques de motor 85-110 m [1000 - 2000T] | B8: 0
A9: Buques Motos 135 m [2000 - 3000T] | B9: 0
A10: Convoyes acoplados [163-185 m] | B10: 1.02353974e-06
A11: Convoy empujado - bote de empuje + 2 barcazas | B11: 0
A12: Convoy empujado - bote de empuje + 4/5 barcazas | B12: 0
A13: Convoy empujado - bote de empuje + 6 barcazas | B13: 0
A14: Buques cisterna | B14: 0
A15: Buques portacontenedores 110m | B15: 0
A16: Contenedores 135 | B16: 0
A17: Buques portacontenedores - convoyes acoplados | B17: 0
A20: Diésel | B20: 0.4143135205
A21: Otros | B21: 0
